Workbook

Sheet Draft decision
D4: Transgrid revised proposal amendments to AER's draft decision
B12: Actual and estimated inflation
C13: Actual | M13: Estimated
C14: 2011-12 | D14: 2012-13 | E14: 2013-14 | F14: 2014-15 | G14: 2015-16 | H14: 2016-17 | I14: 2017-18 | J14: 2018-19 | K14: 2019-20 | L14: 2020-21 | M14: 2021-22 | N14: 2022-23
B15: ABS CPI index - June | D15: 102.8 | E15: 105.9 | F15: 107.5 | G15: 108.6 | H15: 110.7 | I15: 113 | J15: 114.8 | K15: 114.4 | L15: 118.8 | M15: 126.1 | N15: 133.9182
B16: Inflation rate (per cent) | E16: =+E15/D15-1 -> 0.03015564202 | F16: =+F15/E15-1 -> 0.01510859301 | G16: 0.01023255814 | H16: 0.01933701657 | I16: 0.02077687444 | J16: 0.01592920354 | K16: -0.003484320557 | L16: =+L15/K15-1 -> 0.03846153846 | M16: =+M15/L15-1 -> 0.06144781145 | N16: =+N15/M15-1 -> 0.062
B17: Reconstructed cumulative index (2022-23=1) | D17: =E17/(1+E16) -> 0.7676327788 | E17: =F17/(1+F16) -> 0.7907812381 | F17: =G17/(1+G16) -> 0.80272883 | G17: 0.8109427994 | H17: 0.8266240138 | I17: 0.8437986771 | J17: 0.857239718 | K17: 0.85425282 | L17: 0.8871086977 | M17: 0.9416195857 | N17: 1
B21: 7.5.1 - The carryover amounts that arise from applying the EBSS during the current regulatory control period
B23: Base year used to forecast opex for the current period (drop down menu) | C23: 2016-17
B24: Non-recurrent efficiency adjustment made to 2016-17 opex, $m, real June 2018 | C24: 2.171640148
B25: 7.5.1.1 - Opex allowance applicable to EBSS (EBSS target)
C26: $m, real June 2014 | E26: $m, real June 2018 | K26: $m, real June 2023
C27: Previous period | E27: Current regulatory control period | K27: Previous period | M27: Current regulatory control period
C28: =$C$23 -> 2016-17 | D28: =I$14 -> 2017-18 | E28: =J$14 -> 2018-19 | F28: 2019-20 | G28: 2020-21 | H28: 2021-22 | I28: 2022-23 | K28: =$C$23 -> 2016-17 | L28: =I$14 -> 2017-18 | M28: =J$14 -> 2018-19 | N28: 2019-20 | O28: 2020-21 | P28: 2021-22 | Q28: 2022-23
B29: Total opex allowance | C29: 173.4966681 | D29: 166.9803843 | E29: 175.5591916 | F29: 178.7275452 | G29: 183.038485 | H29: 191.7363907 | I29: 184.5700447 | K29: =+C29/$E$17 -> 219.3990699 | L29: =+D29/$E$17 -> 211.1587582 | M29: =+E29/$I$17 -> 208.0581498 | N29: =+F29/$I$17 -> 211.8130189 | O29: =+G29/$I$17 -> 216.9219862 | P29: =+H29/$I$17 -> 227.2300205 | Q29: =+I29/$I$17 -> 218.7370634
B30: Approved excludable costs - allowance
B31: Debt raising costs | C31: -3.175738619 | D31: -3.162700092 | E31: -3.242894416 | F31: -3.272940748 | G31: -3.357699011 | H31: -3.560643448 | I31: -4.086146155 | K31: =+C31/$E$17 -> -4.015950892 | L31: =+D31/$E$17 -> -3.999462734 | M31: =E31/$I$17 -> -3.843208698 | N31: =F31/$I$17 -> -3.878817112 | O31: =G31/$I$17 -> -3.979265554 | P31: =H31/$I$17 -> -4.21977842 | Q31: -4.842560514
B32: Network support costs | E32: -0.7019337795 | F32: -2.552341974 | G32: -5.834271291 | H32: -10.03945149 | I32: 0 | K32: =+C32/$E$17 -> 0 | L32: 0 | M32: -0.8318735245 | N32: -3.024823389 | O32: -6.914293005 | P32: -11.89792276 | Q32: 0
B33: Contingent project VNI, QNI & PEC | K33: 0 | L33: 0 | M33: 0 | N33: 0 | O33: 0 | P33: 0 | Q33: 0
B34: Bushfire cost pass through | E34: 0 | F34: 6.404407879 | G34: 8.005838992 | H34: 24.95151909 | I34: 0 | K34: 0 | L34: 0 | M34: 0 | N34: 7.589971462 | O34: 9.4878544 | P34: 29.57046481 | Q34: 0
K35: 0 | L35: 0 | M35: 0 | N35: 0 | O35: 0 | P35: 0 | Q35: 0
B36: Forecast opex for EBSS purposes | C36: =SUM(C29:C35) -> 170.3209295 | D36: 163.8176842 | E36: =SUM(E29:E35) -> 171.6143634 | F36: =SUM(F29:F35) -> 179.3066703 | G36: 181.8523537 | H36: 203.0878149 | I36: 180.4838985 | K36: =+SUM(K29:K35) -> 215.383119 | L36: 207.1592955 | M36: 203.3830676 | N36: 212.4993499 | O36: 215.5162821 | P36: 240.6827841 | Q36: 213.8945028
B38: 7.5.1.2 - Actual and estimated opex applicable to EBSS
C39: $m, Actual | K39: $m, real June 2023
C40: Previous period | E40: Current regulatory control period | K40: Previous period | M40: Current regulatory control period
C41: =$C$23 -> 2016-17 | D41: =I$14 -> 2017-18 | E41: =J$14 -> 2018-19 | F41: 2019-20 | G41: 2020-21 | H41: 2021-22 | I41: 2022-23 | K41: =$C$23 -> 2016-17 | L41: =I$14 -> 2017-18 | M41: =J$14 -> 2018-19 | N41: 2019-20 | O41: 2020-21 | P41: 2021-22 | Q41: 2022-23
B42: Total opex | C42: 170.366707 | D42: 153.556694 | E42: 154.4478452 | F42: 161.451859 | G42: 168.541965 | H42: 186.5899532 | K42: =+C42/LOOKUP($C$23,$D$14:$N$14,$D$17:$N$17)*(1+LOOKUP($C$23,$D$14:$N$14,$D$16:$N$16))^0.5 -> 208.082525 | L42: =+D42/I$17*(1+I$16)^0.5 -> 183.863416 | M42: =+E42/J$17*(1+J$16)^0.5 -> 181.5980961 | N42: =+F42/K$17*(1+K$16)^0.5 -> 188.6681961 | O42: =+G42/L$17*(1+L$16)^0.5 -> 193.6093932 | P42: =+H42/M$17*(1+M$16)^0.5 -> 204.1559753
B43: Approved excludable costs
B44: =B31 -> Debt raising costs | E44: 0 | F44: 0 | G44: 0 | H44: 0 | K44: =+C44/LOOKUP($C$23,$D$14:$N$14,$D$17:$N$17)*(1+LOOKUP($C$23,$D$14:$N$14,$D$16:$N$16))^0.5 -> 0 | L44: =D44/I$17*(1+I$16)^0.5 -> 0 | M44: =E44/J$17*(1+J$16)^0.5 -> 0 | N44: =F44/K$17*(1+K$16)^0.5 -> 0 | O44: 0 | P44: 0
B45: =B32 -> Network support costs | E45: -1.03207379 | F45: -1.233986 | G45: -1.1897211 | H45: -1.17987491 | K45: 0 | L45: 0 | M45: =E45/J$17*(1+J$16)^0.5 -> -1.213501134 | N45: -1.442002056 | O45: =G45/L$17*(1+L$16)^0.5 -> -1.366669602 | P45: =H45/M$17*(1+M$16)^0.5 -> -1.290951141
B46: Network capability projects | E46: 0 | F46: 0 | G46: 0 | H46: 0 | K46: 0 | L46: 0 | M46: 0 | N46: =F46/K$17*(1+K$16)^0.5 -> 0 | O46: 0 | P46: =H46/M$17*(1+M$16)^0.5 -> 0 | S46: Transgrid to nominate base year used to forecast opex (drop down menu)
B47: Capitalised opex that has been excluded from the regulatory asset base | K47: 0 | L47: 0 | M47: 0 | N47: =F47/K$17*(1+K$16)^0.5 -> 0 | O47: 0 | P47: 0
B48: Movements in provisions related to opex | C48: -2.925214474 | D48: 5.062551536 | E48: -0.767777478 | F48: -7.162273 | G48: -8.098897 | H48: 0.7609415 | K48: -3.57279908 | L48: 6.061722187 | M48: -0.9027444059 | N48: -8.36963498 | O48: -9.303454683 | P48: 0.8325783431
B49: Other adjustments or exclusions required by the EBSS | E49: 0 | F49: 0 | G49: 0 | H49: 0 | K49: 0 | L49: 0 | M49: 0 | N49: 0 | O49: 0 | P49: 0
B50: Actual opex for EBSS purposes | C50: =SUM(C42:C49) -> 167.4414925 | D50: 158.6192455 | E50: 152.6479939 | F50: 153.0556 | G50: 159.2533469 | H50: 186.1710198 | K50: =K42+SUM(K44:K49) -> 204.5097259 | L50: 189.9251381 | M50: 179.4818506 | N50: 178.856559 | O50: 182.9392689 | P50: 203.6976025 | Q50: =Q36-(LOOKUP($R$50,M28:P28,M36:P36)-LOOKUP($R$50,M41:P41,M50:P50))+R51 -> 191.4688069 | R50: 2021-22
R51: 14.55948567 | S51: Base year non-recurrent efficiency gain $m, real June 2023
K52: Incremental gain $m, real June 2023
M53: =(M36-M50)-((L36-L50)-(K36-K50))-C24/I17 -> 14.96680551 | N53: =(N36-N50)-(M36-M50) -> 9.741573788 | O53: =(O36-O50)-(N36-N50) -> -1.065777651 | P53: =(P36-P50)-(O36-O50) -> 4.408168441 | Q53: =(Q36-Q50)-(P36-P50) -> -14.55948567
K55: Carryover
M56: Current regulatory control period | R56: Forthcoming regulatory control period
M57: $m, real June 2022
M58: =E41 -> 2018-19 | N58: =F41 -> 2019-20 | O58: 2020-21 | P58: 2021-22 | Q58: 2022-23 | R58: =LEFT(Q58,4)+1&"-"&RIGHT(Q58,2)+1 -> 2023-24 | S58: =LEFT(R58,4)+1&"-"&RIGHT(R58,2)+1 -> 2024-25 | T58: 2025-26 | U58: 2026-27 | V58: 2027-28 | W58: Total
K59: =M58 -> 2018-19 | N59: =$M$53 -> 14.96680551 | O59: =$M$53 -> 14.96680551 | P59: =$M$53 -> 14.96680551 | Q59: =$M$53 -> 14.96680551 | R59: =$M$53 -> 14.96680551
K60: =N58 -> 2019-20 | O60: =$N$53 -> 9.741573788 | P60: =$N$53 -> 9.741573788 | Q60: =$N$53 -> 9.741573788 | R60: =$N$53 -> 9.741573788 | S60: =$N$53 -> 9.741573788
K61: =O58 -> 2020-21 | P61: =$O$53 -> -1.065777651 | Q61: =$O$53 -> -1.065777651 | R61: =$O$53 -> -1.065777651 | S61: =$O$53 -> -1.065777651 | T61: =$O$53 -> -1.065777651
K62: =P58 -> 2021-22 | Q62: =$P$53 -> 4.408168441 | R62: =$P$53 -> 4.408168441 | S62: =$P$53 -> 4.408168441 | T62: =$P$53 -> 4.408168441 | U62: =$P$53 -> 4.408168441
K63: =Q58 -> 2022-23 | R63: =+$Q$53 -> -14.55948567 | S63: =+$Q$53 -> -14.55948567 | T63: =+$Q$53 -> -14.55948567 | U63: =+$Q$53 -> -14.55948567 | V63: =+$Q$53 -> -14.55948567
K64: Total Carryover Amount ($m, June 2023) | R64: =+SUM(R59:R63) -> 13.49128442 | S64: =+SUM(S60:S63) -> -1.475521087 | T64: =+SUM(T61:T63) -> -11.21709488 | U64: =+SUM(U62:U63) -> -10.15131722 | V64: =+SUM(V63) -> -14.55948567 | W64: =+SUM(R64:V64) -> -23.91213443
K66: PTRM inputs ($m, June 2023) | R66: =R64 -> 13.49128442 | S66: =S64 -> -1.475521087 | T66: =T64 -> -11.21709488 | U66: =U64 -> -10.15131722 | V66: =V64 -> -14.55948567 | W66: =+SUM(R66:V66) -> -23.91213443
